fUSD/lending_fUSD_20251223
["ID","MTS","AMOUNT","RATE_DAILY","PERIOD"]
[399538562,1766463045832,-5140.57893056,0.00017,2]
[399538581,1766463147787,500.0,0.00014,3]
[399538582,1766463406362,152.81,0.00022,30]
[399538591,1766464231602,-634.47129063,0.0001255,2]
[399538593,1766464231613,-203.18870937,0.0001255,2]
[399538595,1766464231623,-1600.0,0.0001264,2]
[399538596,1766464231632,-45.56885914,0.00012905,2]
[399538597,1766464231656,-200.55114086,0.00012905,2]
[399538598,1766464231665,-195.0,0.00012927,2]
[399538599,1766464231675,-300.0,0.00012989,2]
[399538600,1766464231684,-208.07935915,0.0001299,2]
[399538601,1766464231696,-265.00000012,0.0001299,2]
[399538602,1766464231707,-697.39149,0.0001299,2]
[399538603,1766464231718,-717.38573744,0.0001299,2]
[399538604,1766464231729,-491.7797,0.0001299,2]
[399538605,1766464231740,-1366.96461276,0.0001299,2]
[399538606,1766464231751,-302.28095713,0.0001299,2]
[399538607,1766464231763,-310.31,0.0001299,2]
[399538608,1766464231784,-9767.83385312,0.0001299,2]
[399538609,1766464231795,-1727.57054397,0.0001299,2]
[399538610,1766464231806,-1403.84725605,0.0001299,2]
[399538611,1766464231817,-6889.881243,0.0001299,2]
[399538612,1766464231828,-803.70972726,0.0001299,2]
[399538613,1766464231839,-297.05507805,0.0001299,2]
[399538614,1766464231850,-5965.54022843,0.0001299,2]
[399538615,1766464231860,-412.83010639,0.00013223,2]
[399538616,1766464231871,-3976.52896673,0.00013223,2]
[399538648,1766464237682,-191.87192976,0.00013222,2]
[399538649,1766464237692,-212.99913417,0.00013222,2]
[399538650,1766464237702,-41.62731246,0.00013222,2]
[399538651,1766464237713,-458.37268754,0.00013222,2]
[399538652,1766464237722,-216.83592938,0.00013222,2]
[399538653,1766464237731,-500.0,0.00013222,2]
[399538654,1766464237740,-500.0,0.00013222,2]
[399538655,1766464237749,-73.97703112,0.00013222,2]
[399538656,1766464237760,-426.02296888,0.00013222,2]
[399538657,1766464237770,-500.0,0.00013222,2]
[399538658,1766464237779,-164.84150446,0.00013222,2]
[399538659,1766464237789,-500.0,0.00013222,2]
[399538660,1766464237798,-67.7064436,0.00013222,2]
[399538661,1766464237809,-432.2935564,0.00013222,2]
[399538662,1766464237818,-63.8064436,0.00013222,2]
[399538663,1766464237836,-436.1935564,0.00013222,2]
[399538664,1766464237845,-67.74362702,0.00013222,2]
[399538665,1766464237864,-432.25637298,0.00013222,2]
[399538666,1766464237873,-500.0,0.00013222,2]
[399538667,1766464237882,-500.0,0.00013222,2]
[399538668,1766464237891,-436.35069405,0.00013222,2]
[399538669,1766464237902,-63.64930595,0.00013222,2]
[399538670,1766464237911,-245.80219209,0.00013222,2]
[399538671,1766464237926,-254.19780791,0.00013222,2]
[399538672,1766464237935,-500.0,0.00013222,2]
[399538673,1766464237944,-500.0,0.00013222,2]
[399538674,1766464237953,-500.0,0.00013222,2]
[399538675,1766464237962,-500.0,0.00013222,2]
[399538676,1766464237971,-500.0,0.00013222,2]
[399538677,1766464237985,-500.0,0.00013222,2]
[399538678,1766464237994,-500.0,0.00013222,2]
[399538679,1766464238003,-500.0,0.00013222,2]
[399538680,1766464238012,-500.0,0.00013222,2]
[399538681,1766464238021,-538.32366975,0.00013222,2]
[399538682,1766464238029,-500.0,0.00013222,2]
[399538683,1766464238037,-500.0,0.00013222,2]
[399538684,1766464238045,-500.0,0.00013222,2]
[399538685,1766464238053,-500.0,0.00013222,2]
[399538686,1766464238061,-500.0,0.00013222,2]
[399538687,1766464238071,-500.0,0.00013222,2]
[399538688,1766464238080,-500.0,0.00013222,2]
[399538689,1766464238090,-500.0,0.00013222,2]
[399538690,1766464238099,-500.0,0.00013222,2]
[399538691,1766464238109,-500.0,0.00013222,2]
[399538692,1766464238118,-500.0,0.00013222,2]
[399538693,1766464238127,-500.0,0.00013222,2]
[399538694,1766464238137,-995610.64092688,0.00013223,2]
[399538695,1766464238147,-2211.9513,0.00013315,2]
[399538696,1766464238156,-2940.56,0.00013323,2]
[399538697,1766464238166,-197.333,0.00013323,2]
[399538698,1766464238176,-610.41923647,0.00013323,2]
[399538699,1766464238186,-1349.35,0.00013343,2]
[399538700,1766464238195,-306.0,0.00013362,2]
[399538701,1766464238205,-589.81,0.00013374,2]
[399538702,1766464238215,-563.0,0.00013388,2]
[399538703,1766464238224,-3827.73,0.00013406,2]
[399538704,1766464238234,-4686.36,0.00013406,2]
[399538705,1766464238243,-6129.97,0.00013406,2]
[399538706,1766464238253,-9999.99,0.00013406,2]
[399538707,1766464238263,-150.99,0.00013406,2]
[399538708,1766464238271,-150.99,0.00013406,2]
[399538709,1766464238281,-6527.93632685,0.00013406,2]
[399538710,1766464238293,-518.98264,0.00013406,2]
[399538714,1766464239912,-479.86646214,0.00013215,2]
[399538715,1766464239922,-8449.85103315,0.00013406,2]
[399538716,1766464239932,-299.99,0.00013406,2]
[399538717,1766464239946,-39713.76111185,0.00013406,2]
[399538718,1766464239959,-295.25399992,0.00013406,2]
[399538719,1766464239971,-883.89,0.00013406,2]
[399538720,1766464240001,-25802.22488823,0.00013406,2]
[399538721,1766464240019,-1198.12,0.00013406,2]
[399538722,1766464240038,-999.99,0.00013406,2]
[399538723,1766464240057,-5691.04,0.00013406,2]
[399538724,1766464240067,-200.0,0.00013406,2]
[399538725,1766464240079,-200.0,0.00013406,2]
[399538726,1766464240089,-153.1696294,0.00013406,2]
[399538727,1766464240098,-500.0,0.00013406,2]
[399538728,1766464240107,-500.0,0.00013406,2]
[399538729,1766464240117,-500.0,0.00013406,2]
[399538730,1766464240126,-500.0,0.00013406,2]
[399538731,1766464240439,-500.0,0.00013406,2]
[399538732,1766464240449,-500.0,0.00013406,2]
[399538733,1766464240459,-500.0,0.00013406,2]
[399538734,1766464240470,-151.0,0.00013406,2]
[399538735,1766464240480,-500.0,0.00013406,2]
[399538736,1766464240490,-151.0,0.00013406,2]
[399538737,1766464240499,-500.0,0.00013406,2]
[399538738,1766464240509,-151.0,0.00013406,2]
[399538739,1766464240519,-500.0,0.00013406,2]
[399538740,1766464240529,-151.0,0.00013406,2]
[399538741,1766464240538,-500.0,0.00013406,2]
[399538742,1766464240548,-151.0,0.00013406,2]
[399538743,1766464240557,-151.0,0.00013406,2]
[399538744,1766464240567,-151.0,0.00013406,2]
[399538745,1766464240576,-151.0,0.00013406,2]
[399538746,1766464240586,-151.0,0.00013406,2]
[399538747,1766464240595,-500.0,0.00013406,2]
[399538748,1766464240604,-151.0,0.00013406,2]
[399538749,1766464240613,-500.0,0.00013406,2]
[399538750,1766464240623,-151.0,0.00013406,2]
[399538751,1766464240632,-362.05559105,0.00013406,2]
[399538752,1766464240641,-500.0,0.00013406,2]
[399538753,1766464240651,-151.0,0.00013406,2]
[399538754,1766464240660,-500.0,0.00013406,2]
[399538755,1766464240669,-151.0,0.00013406,2]
[399538756,1766464240679,-500.0,0.00013406,2]
[399538757,1766464240689,-151.0,0.00013406,2]
[399538758,1766464240699,-500.0,0.00013406,2]
[399538759,1766464240708,-151.0,0.00013406,2]
[399538760,1766464240718,-500.0,0.00013406,2]
[399538761,1766464240727,-151.0,0.00013406,2]
[399538762,1766464240737,-500.0,0.00013406,2]
[399538763,1766464240747,-151.0,0.00013406,2]
[399538764,1766464240756,-500.0,0.00013406,2]
[399538765,1766464240765,-151.0,0.00013406,2]
[399538766,1766464240775,-500.0,0.00013406,2]
[399538767,1766464240785,-151.0,0.00013406,2]
[399538768,1766464240794,-500.0,0.00013406,2]
[399538769,1766464240804,-151.0,0.00013406,2]
[399538770,1766464240814,-500.0,0.00013406,2]
[399538771,1766464240823,-151.0,0.00013406,2]
[399538772,1766464240833,-151.0,0.00013406,2]
[399538773,1766464240842,-151.0,0.00013406,2]
[399538774,1766464240851,-151.0,0.00013406,2]
[399538775,1766464240861,-151.0,0.00013406,2]
[399538776,1766464240871,-151.0,0.00013406,2]
[399538777,1766464240880,-151.0,0.00013406,2]
[399538778,1766464240890,-151.0,0.00013406,2]
[399538779,1766464240899,-151.0,0.00013406,2]
[399538780,1766464240908,-151.0,0.00013406,2]
[399538781,1766464240918,-151.0,0.00013406,2]
[399538782,1766464240928,-200.0,0.00013406,2]
[399538783,1766464240937,-500.0,0.00013407,2]
[399538784,1766464240947,-1176.42,0.00013413,2]
[399538785,1766464240957,-1000.0,0.00013423,2]
[399538786,1766464240966,-398.41354256,0.00013433,2]
[399538787,1766464240977,-1545.0,0.00013457,2]
[399538788,1766464240987,-1184.0,0.00013484,2]
[399538789,1766464240996,-1808.0,0.00013511,2]
[399538790,1766464241005,-468.58,0.00013541,2]
[399538791,1766464241014,-150.0,0.00013576,2]
[399538792,1766464241024,-500.0,0.00013681,2]
[399538793,1766464241033,-1176.42,0.00013687,2]
[399538794,1766464241043,-158.30547288,0.00013688,2]
[399538795,1766464241052,-321.45865313,0.00013698,2]
[399538796,1766464241062,-500.0,0.00013698,2]
[399538797,1766464241071,-292.49274805,0.00013698,2]
[399538798,1766464241081,-500.0,0.00013698,2]
[399538799,1766464241091,-507.5221442,0.00013698,2]
[399538800,1766464241100,-500.0,0.00013698,2]
[399538801,1766464241110,-500.0,0.00013698,2]
[399538802,1766464241119,-887.18,0.00013698,2]
[399538803,1766464241129,-887.18,0.00013698,2]
[399538804,1766464241139,-887.18,0.00013698,2]
[399538805,1766464241148,-887.18,0.00013698,2]
[399538806,1766464241157,-500.0,0.00013698,2]
[399538807,1766464241166,-500.0,0.00013698,2]
[399538808,1766464241176,-500.0,0.00013698,2]
[399538809,1766464241185,-298.12712902,0.00013698,2]
[399538810,1766464241194,-500.0,0.00013698,2]
[399538811,1766464241203,-500.0,0.00013698,2]
[399538812,1766464241213,-500.0,0.00013698,2]
[399538813,1766464241223,-500.0,0.00013698,2]
[399538814,1766464241232,-500.0,0.00013698,2]
[399538815,1766464241241,-500.0,0.00013698,2]
[399538816,1766464241250,-500.0,0.00013698,2]
[399538817,1766464241260,-500.0,0.00013698,2]
[399538818,1766464241271,-422.25701428,0.00013698,2]
[399538819,1766464241280,-500.0,0.00013698,2]
[399538820,1766464241289,-526.36290062,0.00013698,2]
[399538821,1766464241297,-529.15782397,0.00013698,2]
[399538822,1766464241306,-500.0,0.00013698,2]
[399538823,1766464241315,-500.0,0.00013698,2]
[399538824,1766464241324,-533.43919279,0.00013698,2]
[399538825,1766464241333,-500.0,0.00013698,2]
[399538826,1766464241342,-160.33665996,0.00013698,2]
[399538827,1766464241351,-500.0,0.00013698,2]
[399538828,1766464241360,-500.0,0.00013698,2]
[399538829,1766464241369,-500.0,0.00013698,2]
[399538830,1766464241378,-500.0,0.00013698,2]
[399538831,1766464241386,-500.0,0.00013698,2]
[399538832,1766464241395,-500.0,0.00013698,2]
[399538833,1766464241404,-215.39925149,0.00013698,2]
[399538834,1766464241413,-500.0,0.00013698,2]
[399538835,1766464241422,-500.0,0.00013698,2]
[399538836,1766464241431,-500.0,0.00013698,2]
[399538837,1766464241440,-500.0,0.00013698,2]
[399538838,1766464241449,-500.0,0.00013698,2]
[399538839,1766464241458,-500.0,0.00013698,2]
[399538840,1766464241467,-500.0,0.00013698,2]
[399538841,1766464241476,-500.0,0.00013698,2]
[399538842,1766464241485,-509.97247269,0.00013698,2]
[399538843,1766464241493,-1000.0,0.00013699,2]
[399538844,1766464241502,-500.0,0.00013699,2]
[399538845,1766464241511,-500.0,0.00013699,2]
[399538846,1766464241520,-5576.94868106,0.00013721,2]
[399538847,1766464241533,-4514.51,0.00013721,2]
[399538848,1766464241544,-4234.54502814,0.00013721,2]
[399538849,1766464241566,-1587.55113131,0.00013721,2]
[399538850,1766464241577,-671.44990857,0.00013721,2]
[399538851,1766464241588,-746.71567383,0.00013721,2]
[399538852,1766464241598,-569.26068594,0.00013721,2]
[399538853,1766464241609,-2451.658834,0.00013721,2]
[399538854,1766464241624,-746.48005715,0.00013721,2]
[399538855,1766464241632,-5.60996605,0.00013834,2]
[399538856,1766464241650,-535.163914,0.00013834,2]
[399538857,1766464241661,-69.64535642,0.00013834,2]
[399538858,1766464241670,-200.0,0.00013954,2]
[399538859,1766464241679,-500.0,0.00013954,2]
[399538860,1766464241687,-74.0255101,0.00013954,2]
[399538861,1766464241698,-125.9744899,0.00013954,2]
[399538862,1766464241707,-502.99965968,0.00013955,2]
[399538863,1766464241716,-101.02585042,0.00013961,2]
[399538864,1766464241727,-1075.39414958,0.00013961,2]
[399538865,1766464241737,-173.76307393,0.00014037,2]
[399538866,1766464241746,-223.00477947,0.00014173,2]
[399538867,1766464241755,-172.670649,0.00014173,2]
[399538868,1766464241764,-202.46440938,0.00014173,2]
[399538869,1766464241776,-297.53559062,0.00014173,2]
[399538870,1766464241786,-500.0,0.00014173,2]
[399538871,1766464241795,-163.78632391,0.00014173,2]
[399538872,1766464241804,-466.57897047,0.00014173,2]
[399538873,1766464241816,-33.42102953,0.00014173,2]
[399538874,1766464241825,-160.20052694,0.00014173,2]
[399538875,1766464241835,-500.0,0.00014173,2]
[399538876,1766464241844,-500.0,0.00014173,2]
[399538877,1766464241854,-500.0,0.00014173,2]
[399538878,1766464241863,-500.0,0.00014173,2]
[399538879,1766464241872,-500.0,0.00014173,2]
[399538880,1766464241882,-501.7326664,0.00014173,2]
[399538881,1766464241891,-500.1214449,0.00014173,2]
[399538882,1766464241900,-547.46538815,0.00014173,2]
[399538883,1766464241909,-500.11396209,0.00014173,2]
[399538884,1766464241918,-500.0,0.00014173,2]
[399538885,1766464241930,-500.82264109,0.00014173,2]
[399538886,1766464241939,-500.0,0.00014173,2]
[399538887,1766464241948,-500.0,0.00014173,2]
[399538888,1766464241962,-500.0,0.00014173,2]
[399538889,1766464241972,-500.57373942,0.00014173,2]
[399538890,1766464241984,-500.0,0.00014173,2]
[399538891,1766464241994,-500.0,0.00014173,2]
[399538892,1766464242003,-201.7413727,0.00014173,2]
[399538893,1766464242013,-502.35105933,0.00014173,2]
[399538894,1766464242024,-500.0,0.00014173,2]
[399538895,1766464242034,-165.37952363,0.00014173,2]
[399538896,1766464242043,-193.46504883,0.00014196,2]
[399538897,1766464242054,-195.0,0.00014196,2]
[399538898,1766464242063,-1600.0,0.0001422,2]
[399538899,1766464242073,-1176.42,0.00014235,2]
[399538900,1766464242082,-420.0,0.00014245,2]
[399538901,1766464242092,-610.41923647,0.00014345,2]
[399538902,1766464242102,-200.0,0.00014502,2]
[399538903,1766464242112,-200.0,0.00014502,2]
[399538904,1766464242122,-1176.42,0.00014509,2]
[399538905,1766464242132,-151.0,0.00014576,2]
[399538906,1766464242141,-237.9,0.00014669,2]
[399538907,1766464242151,-168.84175508,0.00014721,2]
[399538908,1766464242164,-1000.0,0.00014721,2]
[399538909,1766464242174,-504.37721769,0.00014721,2]
[399538910,1766464242183,-506.70149781,0.00014721,2]
[399538911,1766464242194,-716.53235299,0.00014721,2]
[399538912,1766464242203,-502.65078725,0.00014721,2]
[399538913,1766464242213,-1000.0,0.00014721,2]
[399538914,1766464242222,-1005.67621891,0.00014721,2]
[399538915,1766464242232,-1002.74892513,0.00014721,2]
[399538916,1766464242242,-1005.30925531,0.00014721,2]
[399538917,1766464242251,-1000.0,0.00014721,2]
[399538918,1766464242261,-151.0,0.00014721,2]
[399538919,1766464242271,-151.0,0.00014729,2]
[399538920,1766464242280,-1098.0,0.00014776,2]
[399538921,1766464242290,-1176.42,0.00014783,2]
[399538922,1766464242300,-610.41923647,0.00014856,2]
[399538923,1766464242310,-1176.42,0.00015057,2]
[399538924,1766464242319,-500.0,0.00015268,2]
[399538925,1766464242329,-505.52174355,0.00015268,2]
[399538926,1766464242338,-503.89734133,0.00015268,2]
[399538927,1766464242348,-1176.48,0.00015331,2]
[399538928,1766464242361,-151.59,0.00015346,2]
[399538929,1766464242371,-610.41923647,0.00015367,2]
[399538930,1766464242380,-721.12765535,0.00015391,2]
[399538931,1766464242390,-1108.0,0.00015391,2]
[399538932,1766464242399,-578.20924308,0.00015391,2]
[399538933,1766464242408,-620.0,0.00015391,2]
[399538934,1766464242418,-574.12855637,0.00015391,2]
[399538936,1766464242428,-151.0,0.00015391,2]
[399538937,1766464242437,-322.6107,0.00015391,2]
[399538938,1766464242447,-500.97245458,0.00015497,2]
[399538939,1766464242456,-1098.0,0.00015554,2]
[399538940,1766464242466,-518.0,0.00015599,2]
[399538941,1766464242475,-1263.0,0.00015599,2]
[399538942,1766464242484,-1198.0,0.00015599,2]
[399538943,1766464242493,-912.0,0.00015599,2]
[399538944,1766464242503,-2430.0,0.00015599,2]
[399538945,1766464242512,-1326.0,0.00015599,2]
[399538946,1766464242522,-612.0,0.00015599,2]
[399538947,1766464242531,-1219.58,0.00015616,2]
[399538948,1766464242541,-1219.58,0.00015616,2]
[399538949,1766464242554,-1219.58,0.00015616,2]
[399538950,1766464242564,-587.0,0.00015622,2]
[399538951,1766464242574,-1219.58,0.00015678,2]
[399538952,1766464242583,-1600.0,0.000158,2]
[399538953,1766464242592,-166.66,0.00015871,2]
[399538954,1766464242602,-5904.0,0.00015877,2]
[399538955,1766464242611,-610.41923647,0.00015878,2]
[399538956,1766464242620,-595.37131296,0.00015939,2]
[399538957,1766464242630,-250.0,0.00015946,2]
[399538958,1766464242639,-207.4,0.00016145,2]
[399538959,1766464242649,-500.0,0.00016164,2]
[399538960,1766464242658,-5000.00197605,0.000162,5]
[399538961,1766464242667,-1098.0,0.00016372,2]
[399538962,1766464242677,-610.41923647,0.00016389,2]
[399538963,1766464242687,-166.66,0.00016395,2]
[399538965,1766464242696,-6875.5,0.00016438,2]
[399538967,1766464242707,-532.07411223,0.00016438,2]
[399538969,1766464242716,-1219.58,0.00016438,2]
[399538970,1766464242726,-1219.58,0.00016438,2]
[399538971,1766464242735,-1219.58,0.00016438,2]
[399538972,1766464242747,-1219.58,0.00016438,2]
[399538973,1766464242757,-1243.85,0.00016438,2]
[399538974,1766464242767,-1219.58,0.00016438,2]
[399538975,1766464242777,-1219.58,0.00016438,2]
[399538976,1766464242787,-1219.58,0.00016438,2]
[399538977,1766464242796,-1219.58,0.00016438,2]
[399538978,1766464242806,-170.64,0.00016438,2]
[399538979,1766464242816,-617.40005154,0.00016487,2]
[399538980,1766464242825,-215.0,0.00016521,2]
[399538981,1766464242835,-215.0,0.0001655,2]
[399538982,1766464242844,-215.0,0.00016561,2]
[399538983,1766464242854,-152.93040941,0.00016654,2]
[399538984,1766464242864,-974.33826645,0.0001666,2]
[399538985,1766464242874,-215.0,0.00016693,2]
[399538986,1766464242884,-500.0,0.00016699,2]
[399538987,1766464242893,-150.0,0.00016699,2]
[399538988,1766464242903,-150.0,0.00016699,2]
[399538989,1766464242912,-150.0,0.00016699,2]
[399538990,1766464242922,-150.0,0.00016699,2]
[399538991,1766464242932,-156.04699781,0.00016699,2]
[399538992,1766464242944,-152.24328281,0.00016699,2]
[399538993,1766464242954,-150.0,0.00016699,2]
[399538994,1766464242964,-150.0,0.00016699,2]
[399538995,1766464242974,-150.0,0.00016699,2]
[399538996,1766464242984,-151.45388092,0.00016699,2]
[399538997,1766464242994,-500.0,0.00016699,2]
[399538998,1766464243004,-150.0,0.00016699,2]
[399538999,1766464243014,-500.0,0.00016699,2]
[399539000,1766464243023,-500.0,0.00016699,2]
[399539001,1766464243032,-150.0,0.00016699,2]
[399539002,1766464243042,-500.0,0.00016699,2]
[399539003,1766464243051,-500.0,0.00016699,2]
[399539004,1766464243061,-500.0,0.00016699,2]
[399539005,1766464243070,-150.0,0.00016699,2]
[399539006,1766464243080,-500.0,0.00016699,2]
[399539007,1766464243091,-500.0,0.00016699,2]
[399539008,1766464243101,-558.0,0.00016699,2]
[399539009,1766464243110,-500.0,0.00016699,2]
[399539010,1766464243120,-500.0,0.00016699,2]
[399539011,1766464243129,-150.0,0.00016699,2]
[399539012,1766464243139,-204.40661503,0.00016699,2]
[399539013,1766464243149,-153.0569396,0.00016699,2]
[399539014,1766464243159,-715.0,0.00016699,2]
[399539015,1766464243168,-150.0,0.00016699,2]
[399539016,1766464243178,-500.0,0.00016699,2]
[399539017,1766464243188,-500.0,0.00016699,2]
[399539018,1766464243198,-474.0,0.00016699,2]
[399539019,1766464243208,-150.0,0.00016699,2]
[399539020,1766464243218,-500.0,0.00016699,2]
[399539021,1766464243228,-150.0,0.00016699,2]
[399539022,1766464243237,-157.11554878,0.00016699,2]
[399539023,1766464243247,-500.0,0.00016699,2]
[399539024,1766464243257,-500.0,0.00016699,2]
[399539025,1766464243267,-500.0,0.00016699,2]
[399539026,1766464243278,-769.0,0.00016699,2]
[399539027,1766464243288,-150.0,0.00016699,2]
[399539028,1766464243297,-500.0,0.00016699,2]
[399539029,1766464243307,-150.0,0.00016699,2]
[399539030,1766464243317,-481.33,0.00016712,2]
[399539031,1766464243336,-168.01,0.00016712,2]
[399539033,1766464243347,-500.0,0.00016726,2]
[399539035,1766464243356,-150.0,0.00016726,2]
[399539036,1766464243366,-150.0,0.00016726,2]
[399539037,1766464243376,-150.0,0.00016726,2]
[399539038,1766464243385,-150.0,0.00016726,2]
[399539040,1766464243397,-150.0,0.00016726,2]
[399539042,1766464243406,-206.73241597,0.00016726,2]
[399539044,1766464243417,-150.0,0.00016726,2]
[399539045,1766464243427,-500.0,0.00016726,2]
[399539046,1766464243437,-150.0,0.00016726,2]
[399539047,1766464243446,-500.0,0.00016726,2]
[399539048,1766464243456,-500.0,0.00016726,2]
[399539049,1766464243466,-150.0,0.00016726,2]
[399539050,1766464243476,-500.0,0.00016726,2]
[399539051,1766464243486,-500.0,0.00016726,2]
[399539052,1766464243496,-500.0,0.00016726,2]
[399539053,1766464243505,-500.0,0.00016726,2]
[399539054,1766464243517,-220.89163022,0.00016726,2]
[399539055,1766464243526,-500.0,0.00016726,2]
[399539056,1766464243536,-558.0,0.00016726,2]
[399539057,1766464243545,-500.0,0.00016726,2]
[399539058,1766464243555,-500.0,0.00016726,2]
[399539059,1766464243564,-150.0,0.00016726,2]
[399539060,1766464243574,-715.0,0.00016726,2]
[399539061,1766464243584,-150.0,0.00016726,2]
[399539062,1766464243594,-500.0,0.00016726,2]
[399539063,1766464243603,-500.0,0.00016726,2]
[399539064,1766464243614,-474.0,0.00016726,2]
[399539065,1766464243624,-500.0,0.00016726,2]
[399539066,1766464243633,-150.0,0.00016726,2]
[399539067,1766464243643,-500.0,0.00016726,2]
[399539068,1766464243653,-500.0,0.00016726,2]
[399539069,1766464243663,-769.0,0.00016726,2]
[399539070,1766464243673,-500.0,0.00016726,2]
[399539071,1766464243684,-500.0,0.00016726,2]
[399539072,1766464243694,-500.0,0.00016754,2]
[399539073,1766464243703,-209.58315062,0.00016754,2]
[399539074,1766464243713,-150.0,0.00016754,2]
[399539075,1766464243723,-150.0,0.00016754,2]
[399539076,1766464243732,-223.15728325,0.00016754,2]
[399539077,1766464243742,-150.0,0.00016754,2]
[399539078,1766464243752,-150.0,0.00016754,2]
[399539079,1766464243762,-507.32824713,0.00016754,2]
[399539080,1766464243772,-150.0,0.00016754,2]
[399539081,1766464243782,-272.46378967,0.00016754,2]
[399539082,1766464243792,-500.0,0.00016754,2]
[399539083,1766464243802,-500.0,0.00016754,2]
[399539084,1766464243812,-150.0,0.00016754,2]
[399539085,1766464243822,-500.0,0.00016754,2]
[399539086,1766464243832,-500.0,0.00016754,2]
[399539087,1766464243841,-500.0,0.00016754,2]
[399539088,1766464243851,-500.0,0.00016754,2]
[399539089,1766464243860,-558.0,0.00016754,2]
[399539090,1766464243870,-500.0,0.00016754,2]
[399539091,1766464243880,-500.0,0.00016754,2]
[399539092,1766464243890,-150.0,0.00016754,2]
[399539093,1766464243900,-715.0,0.00016754,2]
[399539094,1766464243909,-171.44382844,0.00016754,2]
[399539095,1766464243919,-500.0,0.00016754,2]
[399539096,1766464243929,-252.61614044,0.00016754,2]
[399539097,1766464243939,-474.0,0.00016754,2]
[399539098,1766464243948,-255.7741324,0.00016754,2]
[399539099,1766464243958,-500.0,0.00016754,2]
[399539100,1766464243968,-500.0,0.00016754,2]
[399539101,1766464243981,-500.0,0.00016754,2]
[399539102,1766464243990,-769.0,0.00016754,2]
[399539103,1766464244000,-500.0,0.00016754,2]
[399539104,1766464244010,-500.0,0.00016754,2]
[399539105,1766464244020,-1108.0,0.0001676,2]
[399539106,1766464244030,-151.0,0.0001676,2]
[399539107,1766464244040,-334.5472959,0.0001676,2]
[399539108,1766464244050,-215.0,0.00016774,2]
[399539109,1766464244060,-500.0,0.00016781,2]
[399539110,1766464244070,-168.39567011,0.00016781,2]
[399539111,1766464244080,-160.24705155,0.00016781,2]
[399539112,1766464244089,-237.96567744,0.00016781,2]
[399539113,1766464244099,-150.82734528,0.00016781,2]
[399539114,1766464244109,-207.3149885,0.00016781,2]
[399539115,1766464244119,-500.0,0.00016781,2]
[399539116,1766464244129,-187.01383122,0.00016781,2]
[399539117,1766464244138,-500.0,0.00016781,2]
[399539118,1766464244148,-500.0,0.00016781,2]
[399539119,1766464244157,-500.0,0.00016781,2]
[399539120,1766464244167,-500.0,0.00016781,2]
[399539121,1766464244176,-464.54142088,0.00016781,2]
[399539122,1766464244186,-558.0,0.00016781,2]
[399539123,1766464244196,-452.2515866,0.00016781,2]
[399539124,1766464244206,-500.0,0.00016781,2]
[399539125,1766464244215,-150.0,0.00016781,2]
[399539126,1766464244225,-715.0,0.00016781,2]
[399539127,1766464244235,-500.0,0.00016781,2]
[399539128,1766464244244,-474.0,0.00016781,2]
[399539129,1766464244255,-500.0,0.00016781,2]
[399539130,1766464244265,-500.0,0.00016781,2]
[399539131,1766464244275,-500.0,0.00016781,2]
[399539132,1766464244285,-769.0,0.00016781,2]